fUST/lending_fUST_20240112
["ID","MTS","AMOUNT","RATE_DAILY","PERIOD"]
[311237896,1704989450093,-641.14117884,0.0003041,2]
[311237897,1704989450102,-666.25,0.0003041,2]
[311237898,1704989450112,-500.0,0.0003041,2]
[311237899,1704989450121,-824.38,0.0003041,2]
[311237901,1704989450130,-500.0,0.0003041,2]
[311237902,1704989450140,-1052.02,0.0003041,2]
[311237903,1704989450149,-500.0,0.0003041,2]
[311237904,1704989450158,-500.0,0.0003041,2]
[311237905,1704989450167,-652.36,0.0003041,2]
[311237906,1704989450181,-500.0,0.0003041,2]
[311237907,1704989450191,-500.0,0.0003041,2]
[311237909,1704989450200,-500.0,0.0003041,2]
[311237910,1704989450209,-502.07502947,0.0003041,2]
[311237911,1704989450218,-500.0,0.0003041,2]
[311237912,1704989450227,-500.0,0.0003041,2]
[311237913,1704989450236,-500.0,0.0003041,2]
[311237914,1704989450246,-500.0,0.0003041,2]
[311237915,1704989450255,-1048.31,0.0003041,2]
[311237916,1704989450264,-862.28,0.0003041,2]
[311237917,1704989450274,-500.0,0.0003041,2]
[311237918,1704989450283,-10599.06,0.0003041,2]
[311237919,1704989450292,-1310.29,0.0003041,2]
[311237920,1704989450302,-500.0,0.0003041,2]
[311237921,1704989450311,-500.0,0.0003041,2]
[311237922,1704989450321,-500.0,0.0003041,2]
[311237923,1704989450330,-500.0,0.0003041,2]
[311237924,1704989450339,-500.0,0.0003041,2]
[311237925,1704989450348,-909.41,0.0003041,2]
[311237926,1704989450358,-2138.68,0.0003041,2]
[311237927,1704989450367,-500.0,0.0003041,2]
[311237928,1704989450377,-500.0,0.0003041,2]
[311237929,1704989450386,-500.0,0.0003041,2]
[311237930,1704989450396,-500.0,0.0003041,2]
[311237931,1704989450405,-500.0,0.0003041,2]
[311237932,1704989450415,-500.0,0.0003041,2]
[311237933,1704989450426,-545.11433363,0.0003041,2]
[311237934,1704989450435,-500.0,0.0003041,2]
[311237935,1704989450444,-500.0,0.0003041,2]
[311237936,1704989450454,-514.32836231,0.0003041,2]
[311237937,1704989450463,-500.0,0.0003041,2]
[311237938,1704989450472,-500.0,0.0003041,5]
[311237939,1704989450481,-500.0,0.0003041,2]
[311237940,1704989450491,-1044.05,0.0003041,2]
[311237941,1704989450501,-500.0,0.0003041,2]
[311237942,1704989450510,-500.0,0.0003041,2]
[311237943,1704989450519,-550.13592132,0.0003041,2]
[311237944,1704989450528,-500.0,0.0003041,2]
[311237945,1704989450538,-508.98992872,0.0003041,2]
[311237946,1704989450547,-510.97783528,0.0003041,2]
[311237947,1704989450558,-500.0,0.0003041,2]
[311237948,1704989450568,-500.0,0.0003041,2]
[311237949,1704989450578,-500.0,0.0003041,2]
[311237950,1704989450588,-500.0,0.0003041,2]
[311237951,1704989450598,-500.0,0.0003041,2]
[311237952,1704989450609,-1000.0,0.0003041,2]
[311237953,1704989450620,-499.16935112,0.0003041,2]
[311237954,1704989450630,-500.0,0.0003041,2]
[311237955,1704989450641,-500.0,0.0003041,2]
[311237956,1704989450651,-500.0,0.0003041,2]
[311237957,1704989450660,-500.0,0.0003041,2]
[311237958,1704989450670,-500.0,0.0003041,2]
[311237959,1704989450681,-2163.45,0.0003041,2]
[311237960,1704989450690,-767.81,0.0003041,2]
[311237961,1704989450701,-3391.32,0.0003041,2]
[311237962,1704989450710,-500.0,0.0003041,2]
[311237963,1704989450720,-16109.12,0.0003041,2]
[311237964,1704989450729,-501.32871188,0.0003041,2]
[311237965,1704989450740,-5989.25,0.0003041,2]
[311237966,1704989450749,-151.0,0.0003041,2]
[311237967,1704989450759,-151.0,0.0003041,2]
[311237968,1704989450769,-1023.877263,0.0003041,2]
[311237969,1704989450780,-1023.877263,0.0003041,2]
[311237970,1704989450790,-1023.877263,0.0003041,2]
[311237971,1704989450800,-1023.877263,0.0003041,2]
[311237972,1704989450811,-4544.456827,0.0003041,2]
[311237973,1704989450822,-4544.456827,0.0003041,2]
[311237974,1704989450831,-384.675704,0.00030479,2]
[311237975,1704989450841,-182.521146,0.00030479,2]
[311237976,1704989450851,-872.972406,0.00030479,2]
[311237977,1704989450860,-417.123371,0.00030479,2]
[311237978,1704989450871,-620.00001746,0.00030485,2]
[311237979,1704989450882,-150.021814,0.000305,4]
[311237980,1704989450892,-151.0,0.0003056,2]
[311237981,1704989450901,-151.0,0.0003056,2]
[311237982,1704989450912,-151.0,0.00030569,2]
[311237983,1704989450926,-152.31739518,0.00030585,7]
[311237984,1704989450935,-152.31739518,0.00030591,7]
[311237985,1704989450945,-157.00088552,0.00030628,7]
[311237986,1704989450954,-500.0,0.00030659,2]
[311237987,1704989450963,-554.04,0.00030659,2]
[311237988,1704989450973,-292.0,0.0003066,30]
[311237989,1704989450984,-4307.0,0.0003066,30]
[311237990,1704989450993,-500.0,0.0003066,7]
[311237991,1704989451003,-6011.0,0.0003066,30]
[311237992,1704989451012,-744.0,0.0003066,30]
[311237993,1704989451021,-16979.0,0.0003066,30]
[311237994,1704989451031,-4544.456827,0.0003066,2]
[311237995,1704989451040,-4544.456827,0.0003066,2]
[311237996,1704989451051,-150.0,0.0003066,30]
[311237997,1704989451061,-157.00088552,0.00030665,7]
[311237998,1704989451070,-341.22,0.00030669,2]
[311237999,1704989451081,-554.04,0.00030669,2]
[311238000,1704989451091,-292.0,0.0003067,30]
[311238001,1704989451100,-4307.0,0.0003067,30]
[311238002,1704989451109,-500.0,0.0003067,7]
[311238003,1704989451119,-6011.0,0.0003067,30]
[311238004,1704989451128,-744.0,0.0003067,30]
[311238005,1704989451138,-16979.0,0.0003067,30]
[311238006,1704989451147,-150.0,0.0003067,30]
[311238007,1704989451157,-292.0,0.0003068,30]
[311238008,1704989451166,-4307.0,0.0003068,30]
[311238009,1704989451178,-500.0,0.0003068,7]
[311238010,1704989451188,-6011.0,0.0003068,30]
[311238011,1704989451198,-744.0,0.0003068,30]
[311238012,1704989451207,-16979.0,0.0003068,30]
[311238013,1704989451217,-1023.877263,0.0003068,2]
[311238014,1704989451226,-1023.877263,0.0003068,2]
[311238015,1704989451236,-150.0,0.0003068,30]
[311238016,1704989451246,-150.0,0.0003068,30]
[311238017,1704989451255,-150.0,0.0003068,30]
[311238018,1704989451265,-554.04,0.00030683,2]
[311238019,1704989451352,-554.04,0.00030683,2]
[311238020,1704989451363,-500.0,0.00030684,2]
[311238021,1704989451373,-500.0,0.00030684,2]
[311238022,1704989451383,-500.0,0.00030684,2]
[311238023,1704989451393,-500.0,0.00030684,2]
[311238024,1704989451404,-500.0,0.00030684,2]
[311238025,1704989451415,-500.0,0.00030684,2]
[311238026,1704989451427,-490.65448554,0.00030684,2]
[311238027,1704989451439,-500.0,0.00030684,2]
[311238028,1704989451449,-500.0,0.00030684,2]
[311238029,1704989451459,-500.0,0.00030684,2]
[311238030,1704989451468,-510.53781387,0.00030684,2]
[311238031,1704989451478,-500.0,0.00030684,2]
[311238032,1704989451487,-500.0,0.00030684,2]
[311238033,1704989451496,-501.95390524,0.00030684,2]
[311238034,1704989451506,-500.0,0.00030684,2]
[311238035,1704989451515,-500.0,0.00030684,2]
[311238036,1704989451525,-500.0,0.00030684,2]
[311238038,1704989451535,-500.0,0.00030684,2]
[311238039,1704989451544,-263.55370066,0.00030684,2]
[311238040,1704989451554,-404.64629949,0.00030684,2]
[311238041,1704989451564,-500.0,0.00030684,2]
[311238042,1704989451573,-500.0,0.00030684,2]
[311238043,1704989451583,-545.28763592,0.00030684,2]
[311238044,1704989451592,-500.0,0.00030684,2]
[311238045,1704989451601,-633.21734718,0.00030684,2]
[311238046,1704989451611,-1075.73,0.00030684,2]
[311238047,1704989451623,-500.0,0.00030684,2]
[311238048,1704989451634,-500.0,0.00030684,2]
[311238049,1704989451643,-500.0,0.00030684,2]
[311238050,1704989451652,-500.0,0.00030684,2]
[311238051,1704989451662,-1000.0,0.00030684,2]
[311238052,1704989451673,-500.0,0.00030684,2]
[311238053,1704989451683,-500.0,0.00030684,2]
[311238054,1704989451692,-179.29970668,0.00030684,2]
[311238055,1704989451701,-500.0,0.00030684,2]
[311238056,1704989451711,-500.0,0.00030684,2]
[311238057,1704989451721,-500.0,0.00030684,2]
[311238058,1704989451730,-500.0,0.00030684,2]
[311238059,1704989451739,-500.0,0.00030684,2]
[311238060,1704989451748,-505.37692655,0.00030684,2]
[311238061,1704989451758,-500.0,0.00030684,2]
[311238062,1704989451768,-500.0,0.00030684,2]
[311238063,1704989451777,-500.0,0.00030684,2]
[311238064,1704989451786,-500.0,0.00030684,2]
[311238065,1704989451795,-500.0,0.00030684,2]
[311238066,1704989451804,-500.0,0.00030684,2]
[311238067,1704989451813,-500.0,0.00030684,2]
[311238068,1704989451823,-500.0,0.00030684,2]
[311238069,1704989451832,-531.01278094,0.00030684,2]
[311238070,1704989451841,-500.0,0.00030684,2]
[311238071,1704989451851,-500.0,0.00030684,2]
[311238072,1704989451859,-910.6,0.00030684,2]
[311238073,1704989451870,-500.0,0.00030684,2]
[311238074,1704989451879,-504.7252435,0.00030684,2]
[311238075,1704989451892,-500.0,0.00030684,2]
[311238076,1704989451902,-634.39417877,0.00030684,2]
[311238077,1704989451911,-500.0,0.00030684,2]
[311238078,1704989451922,-500.0,0.00030684,2]
[311238079,1704989451931,-480.26425601,0.00030684,2]
[311238080,1704989451941,-502.67434409,0.00030684,2]
[311238081,1704989451950,-501.73358744,0.00030684,2]
[311238082,1704989451959,-383.59167857,0.00030684,2]
[311238083,1704989451968,-732.55,0.00030684,2]
[311238084,1704989451978,-500.0,0.00030684,2]
[311238085,1704989451988,-502.67753851,0.00030684,2]
[311238086,1704989451998,-500.0,0.00030684,2]
[311238087,1704989452006,-500.0,0.00030684,2]
[311238088,1704989452016,-541.8,0.00030684,2]
[311238089,1704989452025,-500.0,0.00030684,2]
[311238090,1704989452034,-500.0,0.00030684,2]
[311238091,1704989452043,-500.0,0.00030684,2]
[311238092,1704989452052,-500.0,0.00030684,2]
[311238093,1704989452061,-501.53777005,0.00030684,2]
[311238094,1704989452070,-500.0,0.00030684,2]
[311238095,1704989452079,-1805.23,0.00030684,2]
[311238096,1704989452089,-500.0,0.00030684,2]
[311238097,1704989452098,-500.0,0.00030684,2]
[311238098,1704989452107,-500.0,0.00030684,2]
[311238099,1704989452116,-500.0,0.00030684,2]
[311238100,1704989452125,-500.0,0.00030684,2]
[311238102,1704989452134,-505.37757278,0.00030684,2]
[311238104,1704989452143,-500.0,0.00030684,2]
[311238106,1704989452152,-500.0,0.00030684,2]
[311238107,1704989452161,-556.52601552,0.00030684,2]
[311238108,1704989452170,-1149.22,0.00030684,2]
[311238109,1704989452181,-500.0,0.00030684,2]
[311238111,1704989452190,-500.0,0.00030684,2]
[311238113,1704989452199,-445.35405182,0.00030684,2]
[311238115,1704989452208,-500.0,0.00030684,2]
[311238117,1704989452217,-500.0,0.00030684,2]
[311238119,1704989452227,-500.0,0.00030684,2]
[311238121,1704989452236,-500.0,0.00030684,2]
[311238123,1704989452245,-500.0,0.00030684,2]
[311238125,1704989452254,-506.72182713,0.00030684,2]
[311238127,1704989452263,-500.0,0.00030684,2]
[311238128,1704989452272,-500.0,0.00030684,2]
[311238130,1704989452282,-500.0,0.00030684,2]
[311238132,1704989452291,-500.0,0.00030684,2]
[311238133,1704989452300,-500.0,0.00030684,2]
[311238134,1704989452310,-500.0,0.00030684,2]
[311238136,1704989452319,-500.0,0.00030684,2]
[311238138,1704989452329,-500.0,0.00030684,2]
[311238139,1704989452338,-500.0,0.00030684,2]
[311238141,1704989452348,-500.0,0.00030684,2]
[311238142,1704989452357,-502.77795987,0.00030684,2]
[311238143,1704989452366,-500.0,0.00030684,2]
[311238145,1704989452375,-791.83,0.00030684,2]
[311238146,1704989452388,-500.0,0.00030684,2]
[311238148,1704989452397,-500.0,0.00030684,2]
[311238150,1704989452407,-500.0,0.00030684,2]
[311238152,1704989452416,-500.0,0.00030684,2]
[311238154,1704989452430,-657.31,0.00030684,2]
[311238155,1704989452439,-500.0,0.00030684,2]
[311238157,1704989452448,-500.0,0.00030684,2]
[311238159,1704989452458,-218.364234,0.00030684,2]
[311238160,1704989452467,-500.0,0.00030684,2]
[311238162,1704989452477,-503.768538,0.00030684,2]
[311238163,1704989452487,-500.0,0.00030684,2]
[311238164,1704989452495,-500.0,0.00030684,2]
[311238165,1704989452505,-500.0,0.00030684,2]
[311238166,1704989452514,-500.0,0.00030684,2]
[311238167,1704989452523,-160.18086769,0.00030684,2]
[311238168,1704989452533,-500.0,0.00030684,2]
[311238169,1704989452542,-500.0,0.00030684,2]
[311238170,1704989452551,-344.44482029,0.00030684,2]
[311238171,1704989452559,-500.0,0.00030684,2]
[311238172,1704989452569,-500.0,0.00030684,2]
[311238173,1704989452578,-500.0,0.00030684,2]
[311238174,1704989452587,-851.22,0.00030684,2]
[311238175,1704989452596,-500.0,0.00030684,2]
[311238176,1704989452606,-504.58329312,0.00030684,2]
[311238177,1704989452615,-500.0,0.00030684,2]
[311238178,1704989452624,-752.58,0.00030684,2]
[311238179,1704989452634,-500.0,0.00030684,2]
[311238180,1704989452643,-506.28699417,0.00030684,2]
[311238181,1704989452653,-500.0,0.00030684,2]
[311238182,1704989452662,-500.0,0.00030684,2]
[311238183,1704989452672,-500.0,0.00030684,2]
[311238185,1704989452683,-500.0,0.00030684,2]
[311238187,1704989452692,-500.0,0.00030684,2]
[311238189,1704989452701,-500.0,0.00030684,2]
[311238191,1704989452710,-2622.01,0.00030684,2]
[311238192,1704989452719,-500.0,0.00030684,2]
[311238193,1704989452728,-500.0,0.00030684,2]
[311238195,1704989452737,-500.0,0.00030684,2]
[311238197,1704989452747,-372.96767142,0.00030684,2]
[311238199,1704989452756,-500.0,0.00030684,2]
[311238200,1704989452765,-500.0,0.00030684,2]
[311238202,1704989452777,-500.0,0.00030684,2]
[311238203,1704989452786,-500.0,0.00030684,2]
[311238205,1704989452795,-3471.65,0.00030684,2]
[311238207,1704989452805,-1579.25,0.00030684,2]
[311238209,1704989452814,-500.0,0.00030684,2]
[311238210,1704989452824,-500.0,0.00030684,2]
[311238212,1704989452834,-500.0,0.00030684,2]
[311238214,1704989452843,-500.0,0.00030684,2]
[311238215,1704989452853,-666.25,0.00030684,2]
[311238216,1704989452862,-500.0,0.00030684,2]
[311238217,1704989452872,-824.38,0.00030684,2]
[311238218,1704989452882,-500.0,0.00030684,2]
[311238219,1704989452894,-1052.02,0.00030684,2]
[311238220,1704989452903,-411.81553534,0.00030684,2]
[311238221,1704989452912,-500.0,0.00030684,2]
[311238222,1704989452925,-652.36,0.00030684,2]
[311238223,1704989452935,-163.83594978,0.00030684,2]
[311238224,1704989452945,-500.0,0.00030684,2]
[311238225,1704989452954,-500.0,0.00030684,2]
[311238226,1704989452963,-500.0,0.00030684,2]
[311238227,1704989452972,-500.0,0.00030684,2]
[311238228,1704989452981,-500.0,0.00030684,2]
[311238229,1704989453059,-500.0,0.00030684,2]
[311238230,1704989453069,-1048.31,0.00030684,2]
[311238231,1704989453079,-862.28,0.00030684,2]
[311238232,1704989453089,-180.12976859,0.00030684,2]
[311238233,1704989453098,-10599.06,0.00030684,2]
[311238234,1704989453108,-1310.29,0.00030684,2]
[311238235,1704989453117,-500.0,0.00030684,2]
[311238236,1704989453127,-500.0,0.00030684,2]
[311238237,1704989453136,-500.0,0.00030684,2]
[311238238,1704989453146,-281.47548314,0.00030684,2]
[311238239,1704989453156,-500.0,0.00030684,2]
[311238240,1704989453166,-909.41,0.00030684,2]
[311238241,1704989453177,-2138.68,0.00030684,2]
[311238242,1704989453186,-500.0,0.00030684,2]
[311238243,1704989453195,-500.0,0.00030684,2]
[311238244,1704989453204,-509.73800057,0.00030684,2]
[311238245,1704989453214,-500.0,0.00030684,2]
[311238246,1704989453223,-500.0,0.00030684,2]
[311238247,1704989453232,-500.0,0.00030684,2]
[311238248,1704989453242,-500.0,0.00030684,2]
[311238249,1704989453251,-500.0,0.00030684,2]
[311238250,1704989453260,-500.0,0.00030684,2]
[311238251,1704989453270,-159.91775899,0.00030684,5]
[311238252,1704989453279,-500.0,0.00030684,2]
[311238253,1704989453288,-1044.05,0.00030684,2]
[311238254,1704989453297,-500.0,0.00030684,2]
[311238255,1704989453307,-502.99875543,0.00030684,2]
[311238256,1704989453316,-500.0,0.00030684,2]
[311238257,1704989453325,-500.0,0.00030684,2]
[311238258,1704989453335,-513.17611346,0.00030684,2]
[311238259,1704989453345,-500.0,0.00030684,2]
[311238260,1704989453354,-1003.24708738,0.00030684,2]
[311238261,1704989453364,-503.38877477,0.00030684,2]
[311238262,1704989453373,-500.0,0.00030684,2]
[311238263,1704989453382,-500.0,0.00030684,2]
[311238264,1704989453392,-500.0,0.00030684,2]
[311238265,1704989453402,-500.0,0.00030684,2]
[311238266,1704989453411,-500.0,0.00030684,2]
[311238267,1704989453423,-2163.45,0.00030684,2]
[311238268,1704989453433,-767.81,0.00030684,2]
[311238269,1704989453443,-3391.32,0.00030684,2]
[311238270,1704989453452,-499.82950867,0.00030684,2]
[311238271,1704989453462,-16109.12,0.00030684,2]
[311238272,1704989453471,-151.0,0.00030684,2]
[311238273,1704989453480,-151.0,0.00030684,2]
[311238274,1704989453490,-1023.877263,0.00030684,2]
[311238275,1704989453499,-1023.877263,0.00030684,2]
[311238276,1704989453508,-4544.456827,0.00030684,2]
[311238277,1704989453517,-4544.456836,0.00030684,2]
[311238278,1704989453527,-909.0,0.000307,2]
[311238279,1704989453537,-151.0,0.00030799,2]
[311238280,1704989453547,-151.0,0.00030799,2]
[311238281,1704989453556,-554.04,0.00030799,2]
[311238282,1704989453565,-554.04,0.00030799,2]
[311238283,1704989453575,-554.04,0.00030799,2]
[311238284,1704989453585,-554.04,0.00030799,2]
[311238285,1704989453595,-554.04,0.00030799,2]
[311238286,1704989453605,-554.19020902,0.00030799,2]
[311238287,1704989453615,-63491.72649177,0.000308,7]
[311238288,1704989453728,-10202.84952288,0.000308,7]
[311238289,1704989453794,-1124.72654412,0.00013262,2]
[311238290,1704989453804,-6602.15861025,0.00013263,2]
[311238291,1704989453813,-5989.25,0.00030684,2]
[311238292,1704989453823,-60148.42398535,0.000308,7]
[311238293,1704989453832,-151.0,0.000308,2]
[311238294,1704989453842,-151.0,0.000308,2]
[311238295,1704989453851,-1023.877263,0.000308,2]
[311238296,1704989453861,-1023.877263,0.000308,2]
[311238297,1704989453870,-155.78182122,0.00030842,7]
[311238298,1704989453880,-384.675704,0.00030847,2]
[311238299,1704989453895,-182.521146,0.00030847,2]
[311238300,1704989453904,-417.123371,0.00030847,2]
[311238301,1704989453913,-872.972406,0.00030847,2]
[311238302,1704989453922,-166.584242,0.00030847,2]
[311238303,1704989453932,-166.584241,0.00030847,2]
[311238304,1704989453941,-155.78182122,0.00030857,7]
[311238305,1704989453951,-2511.88909796,0.0003089,4]
[311238306,1704989453960,-1516.401694,0.000309,2]
[311238307,1704989453969,-476.31550712,0.00030936,2]
[311238308,1704989453978,-328.33762895,0.00030936,2]
[311238309,1704989453987,-420.08696009,0.00030936,2]
[311238310,1704989453997,-9108.49767145,0.00030936,2]
[311238311,1704989454006,-1575.0,0.00030936,2]
[311238312,1704989454015,-723.09446152,0.00030936,2]
[311238313,1704989454024,-185.3970542,0.00030936,2]
[311238314,1704989454034,-189.49842961,0.00030936,2]
[311238315,1704989454042,-168.715284,0.00030936,2]
[311238316,1704989454052,-203.78020717,0.00030936,2]
[311238317,1704989454060,-189.52504916,0.00030953,7]
[311238318,1704989454070,-20740.33563615,0.00030957,2]
[311238319,1704989454079,-500.0,0.00030958,2]
[311238320,1704989454088,-500.0,0.00030958,2]
[311238321,1704989454098,-500.0,0.00030958,2]
[311238322,1704989454107,-500.0,0.00030958,2]
[311238323,1704989454116,-500.0,0.00030958,2]
[311238324,1704989454125,-500.0,0.00030958,2]
[311238325,1704989454134,-500.0,0.00030958,2]
[311238326,1704989454145,-280.0,0.00030958,2]
[311238327,1704989454154,-314.75573249,0.00030958,2]
[311238328,1704989454163,-153.08120164,0.00030958,2]
[311238329,1704989454175,-500.0,0.00030958,2]
[311238330,1704989454184,-500.0,0.00030958,2]
[311238331,1704989454194,-500.0,0.00030958,2]
[311238332,1704989454203,-500.0,0.00030958,2]
[311238333,1704989454212,-500.0,0.00030958,2]
[311238334,1704989454222,-500.0,0.00030958,2]
[311238335,1704989454231,-493.32760394,0.00030958,2]
[311238336,1704989454241,-500.0,0.00030958,2]
[311238337,1704989454250,-1075.73,0.00030958,2]
[311238338,1704989454260,-500.0,0.00030958,2]
[311238339,1704989454270,-500.0,0.00030958,2]
[311238340,1704989454279,-500.0,0.00030958,2]
[311238341,1704989454289,-500.0,0.00030958,2]
[311238342,1704989454298,-1000.0,0.00030958,2]
[311238343,1704989454307,-500.0,0.00030958,2]
[311238344,1704989454317,-500.0,0.00030958,2]
[311238345,1704989454326,-500.0,0.00030958,2]
[311238346,1704989454335,-502.68276975,0.00030958,2]
[311238347,1704989454344,-296.81029934,0.00030958,2]
[311238348,1704989454353,-500.0,0.00030958,2]
[311238349,1704989454363,-500.0,0.00030958,2]
[311238350,1704989454372,-500.0,0.00030958,2]
[311238351,1704989454381,-500.0,0.00030958,2]
[311238352,1704989454390,-500.0,0.00030958,2]
[311238353,1704989454399,-500.0,0.00030958,2]
[311238354,1704989454408,-500.0,0.00030958,2]
[311238355,1704989454417,-500.0,0.00030958,2]
[311238356,1704989454429,-451.67328584,0.00030958,2]
[311238357,1704989454508,-500.0,0.00030958,2]
[311238358,1704989454518,-500.0,0.00030958,2]
[311238359,1704989454528,-910.6,0.00030958,2]
[311238360,1704989454537,-500.0,0.00030958,2]
[311238361,1704989454547,-500.0,0.00030958,2]
[311238362,1704989454557,-500.0,0.00030958,2]
[311238363,1704989454566,-500.0,0.00030958,2]
[311238364,1704989454575,-732.55,0.00030958,2]
[311238365,1704989454585,-500.0,0.00030958,2]
[311238366,1704989454595,-520.04023755,0.00030958,2]
[311238367,1704989454604,-445.60852312,0.00030958,2]
[311238368,1704989454613,-541.8,0.00030958,2]
[311238369,1704989454623,-500.0,0.00030958,2]
[311238370,1704989454632,-500.0,0.00030958,2]
[311238371,1704989454641,-500.0,0.00030958,2]
[311238372,1704989454650,-500.0,0.00030958,2]
[311238373,1704989454659,-500.0,0.00030958,2]
[311238374,1704989454669,-1805.23,0.00030958,2]
[311238375,1704989454680,-500.0,0.00030958,2]
[311238376,1704989454690,-500.0,0.00030958,2]
[311238377,1704989454700,-500.0,0.00030958,2]
[311238378,1704989454710,-500.0,0.00030958,2]
[311238379,1704989454719,-500.0,0.00030958,2]
[311238380,1704989454728,-500.0,0.00030958,2]
[311238381,1704989454737,-499.32168742,0.00030958,2]
[311238382,1704989454746,-1149.22,0.00030958,2]
[311238383,1704989454756,-500.0,0.00030958,2]
[311238384,1704989454766,-545.53911227,0.00030958,2]
[311238385,1704989454774,-500.0,0.00030958,2]
[311238386,1704989454784,-503.84768849,0.00030958,2]
[311238387,1704989454793,-500.0,0.00030958,2]
[311238388,1704989454802,-500.0,0.00030958,2]
[311238389,1704989454812,-500.0,0.00030958,2]
[311238390,1704989454821,-500.0,0.00030958,2]
[311238391,1704989454830,-500.0,0.00030958,2]
[311238392,1704989454839,-547.17160883,0.00030958,2]
[311238393,1704989454849,-500.0,0.00030958,2]
[311238394,1704989454858,-500.0,0.00030958,2]
[311238395,1704989454867,-500.0,0.00030958,2]
[311238396,1704989454876,-500.0,0.00030958,2]
[311238397,1704989454891,-500.0,0.00030958,2]
[311238398,1704989454900,-500.0,0.00030958,2]
[311238399,1704989454909,-500.0,0.00030958,2]
[311238400,1704989454919,-500.0,0.00030958,2]
[311238401,1704989454931,-282.69982833,0.00030958,2]
[311238402,1704989454945,-509.13017167,0.00030958,2]
[311238403,1704989454954,-500.0,0.00030958,2]
[311238404,1704989454963,-500.0,0.00030958,2]
[311238405,1704989454972,-363.90282833,0.00030958,2]
[311238406,1704989454986,-136.09717167,0.00030958,2]
[311238407,1704989454995,-500.0,0.00030958,2]
[311238408,1704989455005,-657.31,0.00030958,2]
[311238409,1704989455014,-504.54880296,0.00030958,2]
[311238410,1704989455024,-500.0,0.00030958,2]
[311238411,1704989455033,-500.0,0.00030958,2]
[311238412,1704989455042,-500.0,0.00030958,2]
[311238413,1704989455052,-500.0,0.00030958,2]
[311238414,1704989455061,-500.0,0.00030958,2]
[311238415,1704989455070,-507.5451447,0.00030958,2]
[311238416,1704989455079,-500.0,0.00030958,2]
[311238417,1704989455089,-500.0,0.00030958,2]
[311238418,1704989455098,-500.0,0.00030958,2]
[311238419,1704989455108,-500.0,0.00030958,2]
[311238420,1704989455118,-500.0,0.00030958,2]
[311238421,1704989455127,-851.22,0.00030958,2]
[311238422,1704989455136,-500.0,0.00030958,2]
[311238423,1704989455145,-500.0,0.00030958,2]
[311238424,1704989455155,-752.58,0.00030958,2]
[311238425,1704989455164,-500.0,0.00030958,2]
[311238426,1704989455176,-500.0,0.00030958,2]
[311238427,1704989455185,-500.0,0.00030958,2]
[311238428,1704989455194,-500.0,0.00030958,2]
[311238429,1704989455204,-500.0,0.00030958,2]
[311238430,1704989455213,-500.0,0.00030958,2]
[311238431,1704989455222,-500.0,0.00030958,2]
[311238432,1704989455231,-2622.01,0.00030958,2]
[311238433,1704989455240,-500.0,0.00030958,2]
[311238434,1704989455249,-500.0,0.00030958,2]
[311238435,1704989455258,-500.0,0.00030958,2]
[311238436,1704989455268,-500.0,0.00030958,2]